Workbook

Sheet Alg
D9: Tabelid I
D10: Valemite kasutamine tabelites
D11: Aadresside ja nimede kasutamine tabelites
D12: Table-objekti loomine ja kasutamine
D13: Diagrammid ja graafikud
D14: Mitme, omavahel seotud, tabeliga rakendused

Sheet Sisukord
B3: Tabelite loomise ja kasutamise üldpõhimõtted
B4: Aadresside kasutamine
B5: Harjutus "Lagede värvimine I". Aadressid
B6: Tabel Värvid
B7: Ühemuutuja funktsiooni tabuleerimine ja graafikud. Aadressid
B8: Kahemuutuja funktsioon. Aadressid
B9: Kaubad
B10: Nimede määramine ja kasutamine tabelites
B11: Harjutus "Lagede värvimine II". Nimed. Diagrammid
B12: Table-objektid. Tabeli muutmine Table-objektiks
B13: Tabeli loomine otse Table-objektina. Valemites nimed
B14: Tabeli loomine otse Table-objektina. Valemites päisete tekstid
B15: Funktsioonide tabuleerimine ja graafikud. Variant 1
B16: Funktsioonide tabuleerimine ja graafikud. Variant 2. Table-objekt
B17: Kahemuutuja funktsioon. Nimed
B18: Harjutus "Lagede värvimine III". Ülesande püstitus
B19: Tabel Ruumid
B20: Tabel Värvimine
B21: Lisad
B22: Valideerimine tabelites
B23: Tabeli-objekti tulbapäisete kasutamine valemites
B24: Otsimine. Funktsioon VLOOKUP
B25: R1C1- aadressid
B26: Diagrammid
B27: Valemite kopeerimine

Sheet Tab_Str
D1: veeb | E1: Klipp Tabelite tüüpstruktuur
B14: Arvutid
B16: Mark | C16: Protsessor | D16: Mälu, MB | E16: Ketas,GB | F16: Hind, € | G16: ...
B17: Aragorn | C17: Pent 4; 3,0 | D17: 512 | E17: 160 | F17: 380
B18: Aura | C18: AMD 64; 3,0 | D18: 512 | E18: 160 | F18: 380
B19: Balrog | C19: Pent 4; 3,0 | D19: 512 | E19: 160 | F19: 320
B20: Ekstra | C20: AMD S; 2,8 | D20: 256 | E20: 80 | F20: 270
B21: Eliisa | C21: AMD S; 3,0 | D21: 512 | E21: 160 | F21: 320
B22: Elsa | C22: Pent 4; 3,2 | D22: 512 | E22: 160 | F22: 540
B23: Frodo | C23: AMD 64; 3,8 | D23: 1024 | E23: 320 | F23: 730
B24: Futura | C24: AMD 64; 3,5 | D24: 512 | E24: 160 | F24: 380
B25: Polaris | C25: Intel C; 2,5 | D25: 256 | E25: 80 | F25: 220
B26: Sambo | C26: Pent 4; 3,0 | D26: 512 | E26: 160 | F26: 450
B27: Super | C27: AMD 64; 4,0 | D27: 2048 | E27: 320 | F27: 830
B28: Tetris | C28: AMD S; 2,6 | D28: 256 | E28: 40 | F28: 240
B29: Ultra | C29: Intel C; 3,0 | D29: 512 | E29: 160 | F29: 300
B32: Töötajad
B34: Isikukood | C34: Eesnimi | D34: Perenimi | E34: Sugu | F34: Sünniaeg | G34: ...
B35: 34002110722 | C35: Karl | D35: Agur | E35: mees | F35: 1940-02-11
B36: 35404050446 | C36: Reijo | D36: Bauman | E36: mees | F36: 1954-04-05
B37: 48007150516 | C37: Erna | D37: Eek | E37: naine | F37: 1980-07-15
B38: 44311270496 | C38: Vilma | D38: Eesmaa | E38: naine | F38: 1943-11-27
B39: 37002030149 | C39: Kristjan | D39: Jürimäe | E39: mees | F39: 1970-02-03
B40: 34906210936 | C40: Jaan | D40: Kaasik | E40: mees | F40: 1949-06-21
B41: 48210210529 | C41: Saima | D41: Kukk | E41: naine | F41: 1982-10-21
B42: 33907250511 | C42: Riho | D42: Kuusk | E42: mees | F42: 1939-07-25
B43: 37906080465 | C43: Kristjan | D43: Mägi | E43: mees | F43: 1979-06-08
B44: 37708220891 | C44: Leida | D44: Nõmmik | E44: mees | F44: 1977-08-22
B45: 35001130124 | C45: Aarne | D45: Oks | E45: mees | F45: 1950-01-13
B55: Arvutite müük | D55: Valemites nimed | G55: käibe- maksu % | H55: 0.18
B57: Kuupäev | C57: Müüja | D57: Mark | E57: Arv | F57: Hind | G57: Maksu- mus k-ga | H57: käibe- maks | I57: Maksu- mus k-ta
B58: 2014-01-02 | C58: Kukk | D58: Ekstra | E58: 2 | F58: =VLOOKUP(Mark, Arvutid, 5, 0) -> 270 | G58: =Hind * Arv -> 540 | H58: =maks_kga * k_pr / (1 + k_pr) -> 82.37288136 | I58: =maks_kga - k_maks -> 457.6271186
B59: 2014-01-03 | C59: Kukk | D59: Tetris | E59: 5 | F59: 240 | G59: 1200 | H59: 183.0508475 | I59: 1016.949153
B60: 2014-01-04 | C60: Agur | D60: Balrog | E60: 3 | F60: 320 | G60: 960 | H60: 146.440678 | I60: 813.559322
B61: 2014-01-05 | C61: Kaasik | D61: Aura | E61: 1 | F61: =VLOOKUP(Mark, Arvutid, 5, 0) -> 380 | G61: 380 | H61: 57.96610169 | I61: 322.0338983
B62: 2014-01-06 | C62: Eek | D62: Aragorn | E62: 2 | F62: 380 | G62: 760 | H62: 115.9322034 | I62: 644.0677966
B63: 2014-01-07 | C63: Nõmmik | D63: Balrog | E63: 2 | F63: 320 | G63: 640 | H63: 97.62711864 | I63: 542.3728814
B64: 2014-01-08 | C64: Mägi | D64: Frodo | E64: 1 | F64: 730 | G64: 730 | H64: 111.3559322 | I64: 618.6440678
B65: 2014-01-09 | C65: Kuusk | D65: Elsa | E65: 3 | F65: 540 | G65: 1620 | H65: 247.1186441 | I65: 1372.881356
B66: 2014-01-10 | C66: Kukk | D66: Ekstra | E66: 1 | F66: 270 | G66: 270 | H66: 41.18644068 | I66: 228.8135593
B67: 2014-01-11 | C67: Agur | D67: Frodo | E67: 2 | F67: 730 | G67: 1460 | H67: 222.7118644 | I67: 1237.288136
B68: 2014-01-12 | C68: Kukk | D68: Eliisa | E68: 5 | F68: 320 | G68: 1600 | H68: 244.0677966 | I68: 1355.932203
B69: 2014-01-13 | C69: Mägi | D69: Ultra | E69: 2 | F69: 300 | G69: 600 | H69: 91.52542373 | I69: 508.4745763
B70: 2014-01-14 | C70: Nõmmik | D70: Aragorn | E70: 2 | F70: 380 | G70: 760 | H70: 115.9322034 | I70: 644.0677966
B71: 2014-01-15 | C71: Kuusk | D71: Eliisa | E71: 4 | F71: 320 | G71: 1280 | H71: 195.2542373 | I71: 1084.745763
B72: 2014-01-16 | C72: Kukk | D72: Aura | E72: 2 | F72: 380 | G72: 760 | H72: 115.9322034 | I72: 644.0677966
D74: Kokku: | E74: =SUM(Arv) -> 37 | G74: =SUM(maks_kga) -> 13560 | H74: =SUM(k_maks) -> 2068.474576 | I74: =SUM(maks_kta) -> 11491.52542
B93: Arvutite müük | D93: Valemites aadressid | G93: käibe- maksu % | H93: 0.18
B95: Kuupäev | C95: Müüja | D95: Mark | E95: Arv | F95: Hind | G95: Maksu- mus k-ga | H95: käibe- maks | I95: Maksu- mus k-ta
B96: 2014-01-02 | C96: Kukk | D96: Ekstra | E96: 2 | F96: =VLOOKUP(D96,$B$17:$F$29, 5, 0) -> 270 | G96: =F96 * E96 -> 540 | H96: =G96 * $H$93 / (1 + $H$93) -> 82.37288136 | I96: =G96 - H96 -> 457.6271186
B97: 2014-01-03 | C97: Kukk | D97: Tetris | E97: 5 | F97: 240 | G97: 1200 | H97: 183.0508475 | I97: 1016.949153
B98: 2014-01-04 | C98: Agur | D98: Balrog | E98: 3 | F98: 320 | G98: 960 | H98: 146.440678 | I98: 813.559322
B99: 2014-01-05 | C99: Kaasik | D99: Aura | E99: 1 | F99: 380 | G99: 380 | H99: 57.96610169 | I99: 322.0338983
B100: 2014-01-06 | C100: Eek | D100: Aragorn | E100: 2 | F100: 380 | G100: 760 | H100: 115.9322034 | I100: 644.0677966
B101: 2014-01-07 | C101: Nõmmik | D101: Balrog | E101: 2 | F101: 320 | G101: 640 | H101: 97.62711864 | I101: 542.3728814
B102: 2014-01-08 | C102: Mägi | D102: Frodo | E102: 1 | F102: 730 | G102: 730 | H102: 111.3559322 | I102: 618.6440678
B103: 2014-01-09 | C103: Kuusk | D103: Elsa | E103: 3 | F103: 540 | G103: 1620 | H103: 247.1186441 | I103: 1372.881356
B104: 2014-01-10 | C104: Kukk | D104: Ekstra | E104: 1 | F104: 270 | G104: 270 | H104: 41.18644068 | I104: 228.8135593
B105: 2014-01-11 | C105: Agur | D105: Frodo | E105: 2 | F105: 730 | G105: 1460 | H105: 222.7118644 | I105: 1237.288136
B106: 2014-01-12 | C106: Kukk | D106: Eliisa | E106: 5 | F106: 320 | G106: 1600 | H106: 244.0677966 | I106: 1355.932203
B107: 2014-01-13 | C107: Mägi | D107: Ultra | E107: 2 | F107: 300 | G107: 600 | H107: 91.52542373 | I107: 508.4745763
B108: 2014-01-14 | C108: Nõmmik | D108: Aragorn | E108: 2 | F108: 380 | G108: 760 | H108: 115.9322034 | I108: 644.0677966
B109: 2014-01-15 | C109: Kuusk | D109: Eliisa | E109: 4 | F109: 320 | G109: 1280 | H109: 195.2542373 | I109: 1084.745763
B110: 2014-01-16 | C110: Kukk | D110: Aura | E110: 2 | F110: 380 | G110: 760 | H110: 115.9322034 | I110: 644.0677966
D112: Kokku: | E112: =SUM(E96:E111) -> 37 | G112: =SUM(G96:G111) -> 13560 | H112: =SUM(H96:H111) -> 2068.474576 | I112: =SUM(I96:I111) -> 11491.52542

Sheet Aadressid
B10: R1C1 - aadressid
H13: 13
K16: 21
I17: Kopeerige valem paremale, alla ja diagonaalis. Vaadake aadresse
I19: =H13 + 100 -> 113
I25: =$H$13+100 -> 113
I30: =H$13 + $H13 -> 26

Sheet Laed_A
E1: veeb | F1: Klipp "Aadressid ja nimed tabelites" | H1: otsimine | I1: valemite kopeerimine
B3: Lagede värvimine I. Aadressid
B4: Viitamine teise lehe lahtritele
B5: =Aadressid!H13 + 100 -> 113
B7: värv | C7: hind, €/ltr | D7: kulu, ltr/m2 | F7: tariif, €/m2
F8: 0.25
B10: ruum | C10: pikkus | D10: laius | E10: pindala | F10: värvi kogus | G10: värvi maksumus | H10: tõõtasu | I10: kulud kokku
B11: R_01 | C11: 5 | D11: 4
B12: R_02 | C12: 7.2 | D12: 4.8
B13: R_03 | C13: 6.27 | D13: 5.23
B14: R_03_1 | C14: 5.2 | D14: 4.12
B15: R_04 | C15: 4.2 | D15: 3.9
B16: R_05 | C16: 4.6 | D16: 4.3
B17: R_06 | C17: 7.85 | D17: 6.41
B18: R_07 | C18: 8.4 | D18: 5.82
B19: R_08 | C19: 7.77 | D19: 5.55
D21: Kokku:

Sheet Värvid
B3: Värvid
B5: V_mark | C5: kulu | D5: hind | E5: valmistaja | F5: ...
B6: VL_01 | C6: 0.52 | D6: 3.05 | E6: JukuColor
B7: VL_02 | C7: 0.48 | D7: 3.37 | E7: JukuColor
B8: VL_05 | C8: 0.65 | D8: 4.06 | E8: Sadolin
B9: VL_06 | C9: 0.45 | D9: 3.17 | E9: JukuColor
B10: VL_09 | C10: 0.55 | D10: 4.02 | E10: JukuColor
B11: VL_11 | C11: 0.48 | D11: 3.17 | E11: Sadolin
B12: VL_13 | C12: 0.52 | D12: 2.76 | E12: JukuColor
B13: VL_21 | C13: 0.39 | D13: 3.96 | E13: VivaColor
B14: VL_25 | C14: 0.42 | D14: 3.13 | E14: JukuColor
B15: VL_30 | C15: 0.47 | D15: 3 | E15: VivaColor
B16: VL_32 | C16: 0.55 | D16: 6.31 | E16: JukuColor

Sheet Fun_tab1_A
B3: Funktsioonide tabuleerimine ja graafikud. Variant 1
B5: algus | C5: lõpp | D5: jaotisi | E5: samm | F5: p | H5: ymin | I5: ymax | J5: zkesk
B6: -10 | C6: 10 | D6: 20 | F6: 2
B8: x | C8: y | D8: z

Sheet Fun_XY_A
B2: Kahemuutuja funktsiooni tabel ja graafik. Aadressid.
B4: ax | C4: bx | D4: nx | E4: hx | F4: a | G4: ay | H4: by | I4: ny | J4: hy
B5: 2 | C5: 7 | D5: 10 | E5: =(C5-B5)/D5 -> 0.5 | F5: 5 | G5: 4 | H5: 14 | I5: 10 | J5: =(H5-G5)/I5 -> 1

Sheet Kaubad_A
D1: veeb
B2: Kaupade allahindlus. Suht-, absoluut- ja sega-aadressid
D4: Allahinnatud | G4: 0.07
B5: Kaup | C5: Alghind | D5: Mai | E5: Juuni | F5: Juuli
B6: Kaup1 | C6: 1225
B7: Kaup2 | C7: 500
B8: Kaup3 | C8: 869
B9: Kaup4 | C9: 4589
B10: Kaup5 | C10: 12548
B11: Kaup6 | C11: 369
B12: Kaup7 | C12: 147
B13: Kaup8 | C13: 125
B14: Kaup9 | C14: 3695
B15: Kaup10 | C15: 5896
D18: Allahinnatud
D19: 0.05 | E19: 0.1 | F19: 0.15
B20: Kaup | C20: Alghind | D20: Mai | E20: Juuni | F20: Juuli
B21: Kaup1 | C21: 1225
B22: Kaup2 | C22: 500
B23: Kaup3 | C23: 869
B24: Kaup4 | C24: 4589
B25: Kaup5 | C25: 12548
B26: Kaup6 | C26: 369
B27: Kaup7 | C27: 147
B28: Kaup8 | C28: 125
B29: Kaup9 | C29: 3695
B30: Kaup10 | C30: 5896
D33: Allahinnatud
D34: 0.05 | E34: 0.1 | F34: 0.15
B35: Kaup | C35: Alghind | D35: Mai | E35: Juuni | F35: Juuli
B36: Kaup1 | C36: 1225
B37: Kaup2 | C37: 500
B38: Kaup3 | C38: 869
B39: Kaup4 | C39: 4589
B40: Kaup5 | C40: 12548
B41: Kaup6 | C41: 369
B42: Kaup7 | C42: 147
B43: Kaup8 | C43: 125
B44: Kaup9 | C44: 3695
B45: Kaup10 | C45: 5896

Sheet Nimed
D1: veeb | E1: Klipp "Aadressid ja nimed tabelites"
J16: a | K16: b | L16: h | M16: S | N16: P
J17: 6 | K17: 4 | L17: 3
J18: 8.4 | K18: 6.32 | L18: 2.8
J19: 7.23 | K19: 4.7 | L19: 3.2
J20: 7 | K20: 5 | L20: 3.14
J21: 8 | K21: 6 | L21: 3
J22: 6.25 | K22: 4.33 | L22: 3
J23: 4.7 | K23: 4.3 | L23: 3

Sheet Laed_N
D1: veeb | E1: Klipp "Aadressid ja nimed tabelites" | G1: Diagramm | H1: validee- rimine | I1: otsimine
B3: Lagede värvimine II. Nimed | E3: Diagrammid
B5: värv | C5: hind, €/ltr | D5: kulu, ltr/m2 | F5: tariif, €/m2
F6: 0.6
B9: ruum | C9: pikkus | D9: laius | E9: pindala | F9: v_kogus | G9: v_maks | H9: töötasu | I9: Kokku
B10: R_01 | C10: 5 | D10: 4
B11: R_02 | C11: 7.2 | D11: 4.8
B12: R_03 | C12: 6.27 | D12: 5.23
B13: R_04 | C13: 7.4 | D13: 6.33
B14: R_05 | C14: 4.6 | D14: 4.3
B15: R_06 | C15: 7.85 | D15: 6.41
B16: R_07 | C16: 8 | D16: 7
D18: Kokku:

Sheet Table_1
D1: Klipp "Tabeli muutmine List-objektiks"
J15: Proovige muuta toodud tabel Table-objektiks
J17: ruum | K17: a | L17: b | M17: pind | N17: hind | O17: maksumus
J18: R01 | K18: 5 | L18: 4 | M18: =a * b -> 20 | N18: 150 | O18: =hind * pind -> 3000
J19: R02 | K19: 6 | L19: 5 | M19: =a * b -> 30 | N19: 200 | O19: =hind * pind -> 6000
J20: R03 | K20: 7.5 | L20: 6.2 | M20: =a * b -> 46.5 | N20: 120 | O20: =hind * pind -> 5580
J21: R04 | K21: 5.4 | L21: 4.5 | M21: =a * b -> 24.3 | N21: 150 | O21: =hind * pind -> 3645
J22: R05 | K22: 4 | L22: 3 | M22: =a * b -> 12 | N22: 120 | O22: =hind * pind -> 1440

Sheet Table_2_1
D1: Valideerimine | E1: Otsimine | F1: Klipp "Tabeli loomine List-objektina"
B19: Puidu müük
B21: kuupäev | C21: liik | D21: kogus | E21: hind | F21: maksumus

Sheet Hinnakiri
B3: Puidu hinnakiri
B5: liigid | C5: hinnad
B6: haab | C6: 76
B7: kask | C7: 120
B8: kuusk | C8: 160
B9: lepp | C9: 110
B10: mänd | C10: 150
B11: paju | C11: 76
B12: saar | C12: 210
B13: tamm | C13: 230
B14: vaher | C14: 220

Sheet Table_2_2
D1: Valideerimine | E1: Otsimine | F1: Klipp "Tabeli loomine List-objektina"
B13: Puidu müük
B15: kuupäev | C15: liik | D15: kogus | E15: hind | F15: maksumus

Sheet Fun_tab1_N
B3: Funktsioonide tabuleerimine ja graafikud. Variant 1
B5: algus | C5: lõpp | D5: jaotisi | E5: samm | F5: p | H5: ymin | I5: ymax | J5: zkesk
B6: -10 | C6: 10 | D6: 20 | F6: 2
B8: x | C8: y | D8: z

Sheet Fun_tab2_NT
B3: Funktsioonide tabuleerimine ja graafikud. Variant 2 - Table-objekt
B5: algus | C5: samm | D5: p | F5: zmin | G5: zmax | H5: ykesk
B6: -5 | C6: 0.5 | D6: 2
B8: x | C8: y | D8: z

Sheet Fun_XY_N
B2: Kahemuutuja funktsiooni tabel ja graafik. Nimed
B4: ax | C4: bx | D4: nx | E4: hx | F4: a | G4: ay | H4: by | I4: ny | J4: hy
B5: 2 | C5: 7 | D5: 10 | F5: 5 | G5: 4 | H5: 14 | I5: 10

Sheet Värvimine_ÜP
B3: Lagede värvimine III

Sheet Ruumid
B2: Ruumid
B4: R_kood | C4: pikkus | D4: laius | E4: kõrgus | F4: pindala | G4: S_pind | H4: U_pind | I4: A_pind | J4: ...
B5: R_101 | C5: 5 | D5: 4 | E5: 2.8 | F5: 20 | G5: 44.4 | H5: 2.5 | I5: 3.5
B6: R_102 | C6: 6 | D6: 5 | E6: 3.2 | F6: 30 | G6: 62 | H6: 3.5 | I6: 4.9
B7: R_103 | C7: 6 | D7: 3 | E7: 2.8 | F7: 18 | G7: 44.4 | H7: 2.5 | I7: 3.5
B8: R_104 | C8: 4 | D8: 3 | E8: 2.8 | F8: 12 | G8: 34.5 | H8: 2 | I8: 2.7
B9: R_105 | C9: 4.8 | D9: 3.2 | E9: 2.8 | F9: 15.4 | G9: 39.5 | H9: 2.2 | I9: 3.1
B10: R_106 | C10: 4.2 | D10: 3.8 | E10: 2.8 | F10: 16 | G10: 39.5 | H10: 2.2 | I10: 3.1
B11: R_107 | C11: 5.25 | D11: 4.2 | E11: 2.8 | F11: 22.1 | G11: 47.3 | H11: 2.6 | I11: 3
B12: R_108 | C12: 6.3 | D12: 4.75 | E12: 2.8 | F12: 29.9 | G12: 54.5 | H12: 3.1 | I12: 4.3
B13: R_109 | C13: 6 | D13: 5 | E13: 2.5 | F13: 30 | G13: 48.3 | H13: 2.8 | I13: 3.9
B14: R_110 | C14: 7.2 | D14: 6.1 | E14: 2.8 | F14: 43.9 | G14: 65.6 | H14: 3.7 | I14: 5.2
B15: R_111 | C15: 6 | D15: 4.6 | E15: 3.2 | F15: =C15*D15 -> 27.6 | G15: =2*(C15+D15) * E15 -> 67.84 | H15: =0.04*G15 -> 2.7136 | I15: =0.05*G15 -> 3.392
B16: R_112 | C16: 7.35 | D16: 5.2 | E16: 3.2 | F16: =C16*D16 -> 38.22 | G16: =2*(C16+D16) * E16 -> 80.32 | H16: =0.04*G16 -> 3.2128 | I16: =0.05*G16 -> 4.016
B17: R_113 | C17: 4.28 | D17: 3.3 | E17: 3.2 | F17: =C17*D17 -> 14.124 | G17: =2*(C17+D17) * E17 -> 48.512 | H17: =0.04*G17 -> 1.94048 | I17: =0.05*G17 -> 2.4256
B18: R_201 | C18: 5 | D18: 4 | E18: 2.8 | F18: 20 | G18: 44.4 | H18: 2.5 | I18: 3.5
B19: R_202 | C19: 6 | D19: 5 | E19: 3.2 | F19: 30 | G19: 62 | H19: 3.5 | I19: 4.9
B20: R_203 | C20: 4 | D20: 2.8 | E20: 2.8 | F20: 11.2 | G20: 33.5 | H20: 1.9 | I20: 2.7
B21: R_204 | C21: 4 | D21: 3 | E21: 2.8 | F21: 12 | G21: 34.5 | H21: 2 | I21: 2.7
B22: R_205 | C22: 4.8 | D22: 4 | E22: 2.8 | F22: 19.2 | G22: 43.4 | H22: 2.5 | I22: 3.4
B23: R_206 | C23: 4.2 | D23: 3.8 | E23: 2.8 | F23: 16 | G23: 39.5 | H23: 2.2 | I23: 3.1
B24: R_207 | C24: 5.25 | D24: 4.2 | E24: 2.8 | F24: 22.1 | G24: 46.6 | H24: 2.6 | I24: 3.7
B25: R_208 | C25: 6.3 | D25: 4.75 | E25: 2.8 | F25: 29.9 | G25: 54.5 | H25: 3.1 | I25: 4.3
B26: R_209 | C26: 6 | D26: 5 | E26: 2.5 | F26: 30 | G26: 48.3 | H26: 2.8 | I26: 3.9
B27: R_210 | C27: 7.2 | D27: 6.1 | E27: 2.8 | F27: 43.9 | G27: 65.6 | H27: 3.7 | I27: 5.2
B28: R_211 | C28: 7 | D28: 4.7 | E28: 2.8 | F28: 32.9 | G28: 57.6 | H28: 3.3 | I28: 4.6
B29: R_212 | C29: 6.4 | D29: 4.7 | E29: 2.8 | F29: 30.1 | G29: 54.7 | H29: 3.1 | I29: 4.4
B30: R_213 | C30: 7.35 | D30: 5.2 | E30: 3.2 | F30: =C30*D30 -> 38.22 | G30: =2*(C30+D30) * E30 -> 80.32 | H30: =0.04*G30 -> 3.2128 | I30: =0.05*G30 -> 4.016
B31: R_301 | C31: 7.35 | D31: 6 | E31: 3.2 | F31: 44.1 | G31: 85.44 | H31: 3.4176 | I31: 4.272
B32: R_302 | C32: 3.2 | D32: 2.8 | E32: 3.2 | F32: 8.96 | G32: 38.4 | H32: 1.536 | I32: 1.92
B33: R_303 | C33: 6.2 | D33: 4.75 | E33: 3.2 | F33: 29.45 | G33: 70.08 | H33: 2.8032 | I33: 3.504
B34: R_304 | C34: 5.75 | D34: 3.8 | E34: 3.2 | F34: 21.85 | G34: 61.12 | H34: 2.4448 | I34: 3.056
B35: R_305 | C35: 4.3 | D35: 4.2 | E35: 3.2 | F35: 18.06 | G35: 54.4 | H35: 2.176 | I35: 2.72
B36: R_306 | C36: 8.3 | D36: 5.2 | E36: 3.2 | F36: 43.16 | G36: 86.4 | H36: 3.456 | I36: 4.32
B37: R_307 | C37: 7.35 | D37: 4 | E37: 3.2 | F37: 29.4 | G37: 72.64 | H37: 2.9056 | I37: 3.632
B38: R_308 | C38: 6.4 | D38: 5.2 | E38: 3.2 | F38: 33.28 | G38: 74.24 | H38: 2.9696 | I38: 3.712
B39: R_309 | C39: 5 | D39: 4 | E39: 3.2 | F39: 20 | G39: 57.6 | H39: 2.304 | I39: 2.88
B40: R_310 | C40: 7.1 | D40: 5.2 | E40: 3.2 | F40: 36.92 | G40: 78.72 | H40: 3.1488 | I40: 3.936
B41: R_311 | C41: 5.55 | D41: 3.7 | E41: 3.2 | F41: 20.535 | G41: 59.2 | H41: 2.368 | I41: 2.96
B42: R_312 | C42: 4.4 | D42: 4 | E42: 3.2 | F42: 17.6 | G42: 53.76 | H42: 2.1504 | I42: 2.688
B43: R_313 | C43: 6 | D43: 5.2 | E43: 3.2 | F43: 31.2 | G43: 71.68 | H43: 2.8672 | I43: 3.584

Sheet Värvimine_tab
B2: Lagede värvimine III | E2: Siia teha tabel Värvimine
B4: J Ehitus | C4: objekt | D4: Kullaladu | F4: tariif | G4: 1.3 | I4: muud | J4: 0.1

Sheet Lisad
E9: Lisad
E12: Tulbapäisete kasutamine Table-objektis
E13: Otsimine. Funktsioon VLOOKUP
E14: Diagrammid
E15: Valideerimine tabelites
E16: Valemite kopeerimine
E17: R1C1- aadressid

Sheet Valideerimine
B3: Valideerimine loendiga
B5: Määrake valideerimine allpoololevatele lahtritele
B6: sugu | D6: naine või mees, määrata Data Validation boksis
B7: nädalapäev | D7: määrata Data Validation boksis esitähtede abil
B8: nädalapäev | D8: loendist nimega päevad | F8: Päevad
B9: kuu | D9: loend Kuud lehel abi | F9: Kuud
B10: töötaja | D10: loend T_nimi lehel abi | F10: T_nimi
B11: puu liik | D11: loend P_liigid lehel abi | F11: P_liigid
B14: Valideerimine tabeli tulpades
B15: Määrake valideerimine allpoololevale tabeli tulpadele (vt kommentaari) ja koostage valemid
B17: Kuupäev | C17: Müüja | D17: Puu liik | E17: Sort | F17: Kogus | G17: Hind | H17: Maksumus

Sheet abi
F2: Puidu hinnakiri | I2: M_töötajad
B4: Kuud | D4: Päevad | F4: P_liigid | G4: Hinnad | I4: T_nimi | J4: Amet | K4: Palk
B5: jaanuar | D5: esmaspäev | F5: haab | G5: 76 | I5: Karu | J5: metsülem | K5: 5000
B6: veebruar | D6: teisipäev | F6: kask | G6: 120 | I6: Hunt | J6: turvamees | K6: 4500
B7: märts | D7: kolmapäev | F7: kuusk | G7: 160 | I7: Rebane | J7: ärimees | K7: 5600
B8: aprill | D8: neljapäev | F8: lepp | G8: 110 | I8: Jänes | J8: käskjalg | K8: 450
B9: mai | D9: reede | F9: mänd | G9: 150 | I9: Siil | J9: raamatupidaja | K9: 5467
B10: juuni | D10: laupäev | F10: paju | G10: 76 | I10: Kits | J10: diiler | K10: 4000
B11: juuli | D11: pühapäev | F11: saar | G11: 210 | I11: Sokk | J11: kirvemees | K11: 300
B12: august | F12: tamm | G12: 230
B13: september | F13: vaher | G13: 220
B14: oktoober
B15: november
B16: detsember

Sheet Table_obj
B2: Tabeli-objekti tulbapäisete ja tabelite nimede kasutamine valemites (struktuursed viited - structured referenced)
B3: vt. kommentaari
B4: A_müügid | F4: km_prots | G4: 0.18 | J4: Arvukid
B6: kuupäev | C6: arvuti | D6: arv | E6: hind | F6: maks_kga | G6: käibemaks | H6: maks_kta | J6: mark | K6: protsessor | L6: määlu, MB | M6: ketas,GB | N6: hind | O6: hind_kta
B7: 2013-11-01 | C7: Frodo | D7: 3 | E7: =VLOOKUP(A_müügid[arvuti], Arvukid[], 5, 0) -> 730 | F7: =A_müügid[hind] *A_müügid[arv] -> 2190 | G7: =km_prots * A_müügid[maks_kga] -> 394.2 | H7: =A_müügid[maks_kga] - A_müügid[käibemaks] -> 1795.8 | J7: Aragorn | K7: Pent 4; 3,0 | L7: 512 | M7: 160 | N7: 350 | O7: =Arvukid[[#This Row],[hind]] - km_prots * Arvukid[[#This Row],[hind]] -> 287
B8: 2013-11-01 | C8: Balrog | D8: 1 | E8: =VLOOKUP(A_müügid[arvuti], Arvukid[], 5, 0) -> 320 | F8: =A_müügid[hind] *A_müügid[arv] -> 320 | G8: =km_prots * A_müügid[maks_kga] -> 57.6 | H8: =A_müügid[maks_kga] - A_müügid[käibemaks] -> 262.4 | J8: Aura | K8: AMD 64; 3,0 | L8: 512 | M8: 160 | N8: 380 | O8: =Arvukid[[#This Row],[hind]] - km_prots * Arvukid[[#This Row],[hind]] -> 311.6
B9: 2013-11-02 | C9: Frodo | D9: 6 | E9: =VLOOKUP(A_müügid[arvuti], Arvukid[], 5, 0) -> 730 | F9: =A_müügid[hind] *A_müügid[arv] -> 4380 | G9: =km_prots * A_müügid[maks_kga] -> 788.4 | H9: =A_müügid[maks_kga] - A_müügid[käibemaks] -> 3591.6 | J9: Balrog | K9: Pent 4; 3,0 | L9: 512 | M9: 160 | N9: 320 | O9: =Arvukid[[#This Row],[hind]] - km_prots * Arvukid[[#This Row],[hind]] -> 262.4
B10: 2013-11-02 | C10: Polaris | D10: 4 | E10: =VLOOKUP(A_müügid[arvuti], Arvukid[], 5, 0) -> 220 | F10: =A_müügid[hind] *A_müügid[arv] -> 880 | G10: =km_prots * A_müügid[maks_kga] -> 158.4 | H10: =A_müügid[maks_kga] - A_müügid[käibemaks] -> 721.6 | J10: Eliisa | K10: AMD S; 3,0 | L10: 512 | M10: 160 | N10: 320 | O10: =Arvukid[[#This Row],[hind]] - km_prots * Arvukid[[#This Row],[hind]] -> 262.4
B11: 2013-11-02 | C11: Balrog | D11: 2 | E11: =VLOOKUP(A_müügid[arvuti], Arvukid[], 5, 0) -> 320 | F11: =A_müügid[hind] *A_müügid[arv] -> 640 | G11: =km_prots * A_müügid[maks_kga] -> 115.2 | H11: =A_müügid[maks_kga] - A_müügid[käibemaks] -> 524.8 | J11: Frodo | K11: AMD 64; 3,8 | L11: 1024 | M11: 320 | N11: 730 | O11: =Arvukid[[#This Row],[hind]] - km_prots * Arvukid[[#This Row],[hind]] -> 598.6
B12: 2013-11-03 | C12: Futura | D12: 3 | E12: =VLOOKUP(A_müügid[arvuti], Arvukid[], 5, 0) -> 380 | F12: =A_müügid[hind] *A_müügid[arv] -> 1140 | G12: =km_prots * A_müügid[maks_kga] -> 205.2 | H12: =A_müügid[maks_kga] - A_müügid[käibemaks] -> 934.8 | J12: Futura | K12: AMD 64; 3,5 | L12: 512 | M12: 160 | N12: 380 | O12: =Arvukid[[#This Row],[hind]] - km_prots * Arvukid[[#This Row],[hind]] -> 311.6
B13: 2013-11-04 | C13: Eliisa | D13: 1 | E13: =VLOOKUP(A_müügid[arvuti], Arvukid[], 5, 0) -> 320 | F13: =A_müügid[hind] *A_müügid[arv] -> 320 | G13: =km_prots * A_müügid[maks_kga] -> 57.6 | H13: =A_müügid[maks_kga] - A_müügid[käibemaks] -> 262.4 | J13: Polaris | K13: Intel C; 2,5 | L13: 256 | M13: 80 | N13: 220 | O13: =Arvukid[[#This Row],[hind]] - km_prots * Arvukid[[#This Row],[hind]] -> 180.4
B14: 2013-11-04 | C14: Frodo | D14: 7 | E14: =VLOOKUP(A_müügid[arvuti], Arvukid[], 5, 0) -> 730 | F14: =A_müügid[hind] *A_müügid[arv] -> 5110 | G14: =km_prots * A_müügid[maks_kga] -> 919.8 | H14: =A_müügid[maks_kga] - A_müügid[käibemaks] -> 4190.2 | J14: Sambo | K14: Pent 4; 3,0 | L14: 512 | M14: 160 | N14: 450 | O14: =Arvukid[[#This Row],[hind]] - km_prots * Arvukid[[#This Row],[hind]] -> 369
B15: Total | D15: =SUBTOTAL(109,A_müügid[arv]) -> 27 | F15: =SUBTOTAL(109,A_müügid[maks_kga]) -> 14980 | G15: =SUBTOTAL(109,A_müügid[käibemaks]) -> 2696.4 | H15: =SUBTOTAL(109,A_müügid[maks_kta]) -> 12283.6 | J15: Tetris | K15: AMD S; 2,6 | L15: 256 | M15: 40 | N15: 240 | O15: =Arvukid[[#This Row],[hind]] - km_prots * Arvukid[[#This Row],[hind]] -> 196.8
D16: =SUBTOTAL(109;[arv]) | G16: =SUBTOTAL(109;[käibemaks]) | J16: Ultra | K16: Intel C; 3,0 | L16: 512 | M16: 160 | N16: 300 | O16: =Arvukid[[#This Row],[hind]] - km_prots * Arvukid[[#This Row],[hind]] -> 246
E18: =VLOOKUP([arvuti]; Arvukid; 5; 0) | O18: =[@hind]- km_prots*[@hind]
F19: =[hind] * [arv]
G20: =km_prots * [maks_kga]
H21: =[maks_kga] - [käibemaks]
B22: arvutite arv | E22: maks. hind tabelis A_müügid | G22: maks. hind tabelis Arvukid
B23: =SUM(A_müügid[arv]) -> 27 | E23: =MAX(A_müügid[hind]) -> 730 | G23: =MAX(Arvukid[hind]) -> 730
B25: =A_müügid[[#Totals], [maks_kga]] * 15.6466 -> 234386.068
B27: =SUM(A_müügid[[#Totals],[maks_kta]],A_müügid[[#Data],[käibemaks]]) -> 14980 | C27: Struktuurse viite näide
B28: =SUM(A_müügid[[#Totals];[maks_kta]];A_müügid[[#Data];[käibemaks]])

Sheet VLOOKUP
B2: Otsimisfunktsioon VLOOKUP
B3: Otsimine vertikaalsest tabelist
B4: VLOOKUP(otsitav; tabel; tulemi_tulba_nr; tunnus)
B5: Otsib otsitavale vastavat väärtust tabeli esimesest tulbast ja
B6: tagastab tulemuse tulbast numbriga tulemi_tulba_nr.
B8: otsitav - otsitav väärtus: konstant või viit lahtrile (aadress, nimi)
B9: tabel - tabel, mille esimeses tulbas toimub otsimine: piirkonna aadess või nimi
B10: tulemi_tulba_nr - tabeli tulba number, kust võetakse tagastatav väärtus: arv või arvavaldis
B11: tunnus - määrab väärtuste järjestamise tingimuse tabeli esimeses tulbas ja ka otsimisviisi: 0 või 1
B12: 0 - väärtused tabeli esimeses tulbas võivad olla suvalises järjekorras - kindla väärtuse otsimine
B13: kui otsitavaga võrdset väärtust esimeses tulbas ei ole - veateade - #N/A
B14: 1 - väärtused tabeli esimeses tulbas peavad olema kasvamise järjekorras - vahemiku otsimine
B15: kui otsitavaga võrdset väärtust esimeses tulbas ei ole, tagastatakse lähim väiksem väärtus
B17: Mark | C17: Hind | D17: Protsessor | E17: Kõvaketas | F17: Põhimälu
B18: Gandalf | C18: =VLOOKUP(Mark, Arvutid, 6, 0) -> 8490 | D18: =VLOOKUP(Mark, Arvutid, 2, 0) & "; " & VLOOKUP(Mark, Arvutid, 3, 0) -> Intel Xeon; 3,2
E19: Teha siia vastavad valemid
B21: Arvutid
B22: 1 | C22: 2 | D22: 3 | E22: 4 | F22: 5 | G22: 6
B24: mark | C24: prots_tüüp | D24: taktsagedus | E24: mälu, MB | F24: ketas,GB | G24: hind, Kr
B25: Aragorn | C25: AMD Athlon64 | D25: 3 | E25: 512 | F25: 160 | G25: 4990
B26: Arven | C26: Intel Core 2 | D26: 2.6 | E26: 256 | F26: 200 | G26: 3690
B27: Balrog | C27: Intel Celeron | D27: 2.8 | E27: 256 | F27: 80 | G27: 4190
B28: Eldar | C28: Intel Xeon | D28: 3 | E28: 512 | F28: 160 | G28: 4650
B29: Elend | C29: Intel Celeron | D29: 4 | E29: 2048 | F29: 400 | G29: 12990
B30: Faram | C30: AMD Athlon64 | D30: 3 | E30: 512 | F30: 210 | G30: 5990
B31: Frodo | C31: AMD Athlon64 | D31: 3 | E31: 4072 | F31: 500 | G31: 13300
B32: Gandalf | C32: Intel Xeon | D32: 3.2 | E32: 512 | F32: 160 | G32: 8490
B33: Grimbold | C33: Intel Core 2 | D33: 3.8 | E33: 1024 | F33: 320 | G33: 11490
B34: Kalvar | C34: Intel Xeon | D34: 3 | E34: 512 | F34: 160 | G34: 6990
B35: Marvin | C35: Intel Celeron | D35: 3 | E35: 512 | F35: 160 | G35: 5990
B36: Rohan | C36: AMD Athlon64 | D36: 3.5 | E36: 512 | F36: 160 | G36: 5890
B37: Sauron | C37: Intel Xeon | D37: 2.5 | E37: 256 | F37: 180 | G37: 3390

Sheet Addr_R1C1

Sheet Diagr_1
B2: Diagramm töölehel
B4: Müükide maht
B6: Kv | C6: Liha | D6: Piim | E6: Suhkur | F6: Kokku
B7: 1 | C7: 150 | D7: 140 | E7: 150 | F7: =SUM(C7:E7) -> 440
B8: 2 | C8: 175 | D8: 172 | E8: 180 | F8: =SUM(C8:E8) -> 527
B9: 3 | C9: 149 | D9: 210 | E9: 156 | F9: =SUM(C9:E9) -> 515
B10: 4 | C10: 177 | D10: 146 | E10: 227 | F10: =SUM(C10:E10) -> 550
B11: Kokku | C11: =SUM(C7:C10) -> 651 | D11: =SUM(D7:D10) -> 668 | E11: =SUM(E7:E10) -> 713 | F11: =SUM(F7:F10) -> 2032

Sheet Kopeerimine
B3: Valemite kopeerimise (paljundamise) võimalused
B4: - lohistamine (vedamine) hiire vasakpoolse nupuga
B5: - topeltklõps hiire vasakpoolse nupuga
B6: - objektimenüü korraldused Copy ja Paste (või klahv Enter)
B7: - Edit-menüü korraldused Copy ja Paste (või klahv Enter)
B8: - riistariba nupud Copy ja Paste (või klahv Enter)
B9: - klahvid Ctrl+C ja Ctrl+V (või klahv Enter)
B11: NB! Menüüde, nupude ja klahvide kasutamisel võib ühe osa tegevusest
B12: täita ühe vahendiga, teise osa - teisega, näiteks
A13: , | B13: kopeerimine teha objektimenüü korraldusega Copy,
B14: kleepimine - klahvidega Ctrl+V jmt.

Sheet Lohista
B2: Valemite kopeerimine (paljundamine) lohistamisega ja topeltklõpsuga
B4: hind | C4: 2000
B6: a | C6: b | D6: pind | E6: maks | G6: a | H6: 5 | I6: 6 | J6: 4 | K6: 8 | L6: 7 | M6: 5
B7: 5 | C7: 4 | D7: =B7 * C7 -> 20 | E7: =$C$4 * D7 -> 40000 | G7: b | H7: 4 | I7: 3 | J7: 3 | K7: 5 | L7: 3 | M7: 5
B8: 6 | C8: 3 | G8: pind | H8: =H6 * H7 -> 20
B9: 4 | C9: 3 | G9: maks | H9: =$C$4 * H8 -> 40000
B10: 8 | C10: 5
B11: 7 | C11: 3
B12: 5 | C12: 5
B21: hind | C21: 2000
B23: a | C23: b | D23: pind | E23: maks
B24: 5 | C24: 4 | D24: =a * b -> 20 | E24: =hind * pind -> 40000
B25: 6 | C25: 3
B26: 4 | C26: 3
B27: 8 | C27: 5
B28: 7 | C28: 3
B29: 5 | C29: 5

Sheet Menüüd
B17: hind | C17: 2000
B19: a | C19: b | D19: pind | E19: maks | G19: a | H19: 5 | I19: 6 | J19: 4 | K19: 8 | L19: 7 | M19: 5
B20: 5 | C20: 4 | D20: =a * b -> 20 | E20: =hind * pind -> 40000 | G20: b | H20: 4 | I20: 3 | J20: 3 | K20: 5 | L20: 3 | M20: 5
B21: 6 | C21: 3 | G21: pind | H21: =H19 * H20 -> 20
B22: 4 | C22: 3 | G22: maks | H22: =$C$17 * H21 -> 40000
B23: 8 | C23: 5
B24: 7 | C24: 3
B25: 5 | C25: 5

Sheet Nupud
B14: hind | C14: 2000
B16: a | C16: b | D16: pind | E16: maks | G16: a | H16: 5 | I16: 6 | J16: 4 | K16: 8 | L16: 7 | M16: 5
B17: 5 | C17: 4 | D17: =a * b -> 20 | E17: =hind * pind -> 40000 | G17: b | H17: 4 | I17: 3 | J17: 3 | K17: 5 | L17: 3 | M17: 5
B18: 6 | C18: 3 | G18: pind | H18: =H16 * H17 -> 20
B19: 4 | C19: 3 | G19: maks | H19: =$C$14 * H18 -> 40000
B20: 8 | C20: 5
B21: 7 | C21: 3
B22: 5 | C22: 5

Sheet Ctrl_C_V
B14: hind | C14: 2000
B16: a | C16: b | D16: pind | E16: maks | G16: a | H16: 5 | I16: 6 | J16: 4 | K16: 8 | L16: 7 | M16: 5
B17: 5 | C17: 4 | D17: =a * b -> 20 | E17: =hind * pind -> 40000 | G17: b | H17: 4 | I17: 3 | J17: 3 | K17: 5 | L17: 3 | M17: 5
B18: 6 | C18: 3 | G18: pind | H18: =H16 * H17 -> 20
B19: 4 | C19: 3 | G19: maks | H19: =$C$14 * H18 -> 40000
B20: 8 | C20: 5
B21: 7 | C21: 3
B22: 5 | C22: 5

Sheet Sheet1

Sheet Sheet2
